fUST/lending_fUST_20250615
["ID","MTS","AMOUNT","RATE_DAILY","PERIOD"]
[365812166,1749931839844,-460.0,0.00021917,4]
[365812167,1749931839853,-460.0,0.00021917,4]
[365812168,1749931839863,-460.0,0.00021917,4]
[365812169,1749931839872,-460.0,0.00021917,4]
[365812170,1749931839881,-460.0,0.00021917,4]
[365812171,1749931839891,-460.0,0.00021917,4]
[365812172,1749931839900,-460.0,0.00021917,4]
[365812173,1749931839909,-460.0,0.00021917,4]
[365812174,1749931839920,-460.0,0.00021917,4]
[365812175,1749931839930,-460.0,0.00021917,4]
[365812176,1749931839939,-460.0,0.00021917,4]
[365812177,1749931839949,-305.58150225,0.00021917,4]
[365812179,1749931839959,-460.0,0.00021917,4]
[365812180,1749931839968,-460.0,0.00021917,4]
[365812181,1749931839977,-440.0,0.00021917,4]
[365812182,1749931839986,-290.0,0.00021917,4]
[365812183,1749931839995,-300.69,0.00021917,4]
[365812184,1749931840005,-460.0,0.00021917,4]
[365812186,1749931840015,-460.0,0.00021917,4]
[365812188,1749931840024,-460.0,0.00021917,4]
[365812189,1749931840033,-420.0,0.00021917,4]
[365812190,1749931840043,-430.0,0.00021917,4]
[365812191,1749931840054,-460.0,0.00021917,4]
[365812192,1749931840064,-460.0,0.00021917,4]
[365812193,1749931840073,-452.77394375,0.00021917,4]
[365812194,1749931840083,-189.34039913,0.00021917,4]
[365812195,1749931840092,-460.0,0.00021917,4]
[365812196,1749931840102,-460.0,0.00021917,4]
[365812197,1749931840111,-370.0,0.00021917,4]
[365812198,1749931840120,-460.0,0.00021917,4]
[365812199,1749931840129,-452.46780618,0.00021917,4]
[365812200,1749931840139,-460.0,0.00021917,4]
[365812201,1749931840148,-335.95932143,0.00021917,4]
[365812202,1749931840158,-1364.24,0.00021917,4]
[365812203,1749931840167,-460.0,0.00021917,4]
[365812204,1749931840177,-460.0,0.00021917,4]
[365812205,1749931840187,-202.33200696,0.00021917,4]
[365812206,1749931840196,-460.0,0.00021917,4]
[365812207,1749931840205,-440.0,0.00021917,4]
[365812208,1749931840215,-460.0,0.00021917,4]
[365812210,1749931840224,-3070.43,0.00021917,4]
[365812212,1749931840233,-460.0,0.00021917,4]
[365812214,1749931840243,-460.0,0.00021917,4]
[365812216,1749931840253,-460.0,0.00021917,4]
[365812218,1749931840262,-460.0,0.00021917,4]
[365812220,1749931840271,-460.0,0.00021917,4]
[365812222,1749931840280,-430.0,0.00021917,4]
[365812224,1749931840290,-400.0,0.00021917,4]
[365812226,1749931840299,-1179.01,0.00021917,4]
[365812228,1749931840309,-460.0,0.00021917,4]
[365812230,1749931840318,-460.0,0.00021917,4]
[365812232,1749931840327,-460.0,0.00021917,4]
[365812233,1749931840336,-409.3622305,0.00021917,4]
[365812234,1749931840345,-460.0,0.00021917,4]
[365812235,1749931840354,-460.0,0.00021917,4]
[365812236,1749931840367,-280.0,0.00021917,4]
[365812237,1749931840377,-410.0,0.00021917,4]
[365812238,1749931840386,-430.0,0.00021917,4]
[365812239,1749931840396,-460.0,0.00021917,4]
[365812240,1749931840406,-856.23,0.00021917,4]
[365812241,1749931840416,-430.0,0.00021917,4]
[365812242,1749931840425,-460.0,0.00021917,4]
[365812243,1749931840435,-485.59319208,0.00021917,4]
[365812244,1749931840447,-500.0,0.00021917,4]
[365812245,1749931840457,-460.0,0.00021917,4]
[365812246,1749931840466,-455.75747863,0.00021917,4]
[365812247,1749931840476,-460.0,0.00021917,4]
[365812248,1749931840486,-460.0,0.00021917,4]
[365812249,1749931840495,-680.09,0.00021917,4]
[365812250,1749931840505,-460.0,0.00021917,4]
[365812251,1749931840514,-168.15013796,0.00021917,4]
[365812252,1749931840524,-460.0,0.00021917,4]
[365812253,1749931840534,-460.0,0.00021917,4]
[365812254,1749931840544,-522.02005557,0.00021917,4]
[365812255,1749931840556,-460.0,0.00021917,4]
[365812256,1749931840566,-436.08697673,0.00021917,4]
[365812257,1749931840575,-430.0,0.00021917,4]
[365812258,1749931840585,-2518.08,0.00021917,4]
[365812259,1749931840594,-988.3,0.00021917,4]
[365812260,1749931840603,-460.0,0.00021917,4]
[365812261,1749931840613,-430.0,0.00021917,4]
[365812262,1749931840622,-460.0,0.00021917,4]
[365812263,1749931840632,-460.0,0.00021917,4]
[365812264,1749931840641,-460.0,0.00021917,4]
[365812265,1749931840651,-460.0,0.00021917,4]
[365812266,1749931840661,-388.50620666,0.00021917,4]
[365812267,1749931840671,-430.0,0.00021917,4]
[365812268,1749931840680,-1010.36,0.00021917,4]
[365812269,1749931840689,-460.0,0.00021917,4]
[365812270,1749931840699,-430.0,0.00021917,4]
[365812272,1749931840708,-460.0,0.00021917,4]
[365812273,1749931840718,-480.0,0.00021917,4]
[365812274,1749931840727,-460.0,0.00021917,4]
[365812275,1749931840737,-949.96,0.00021917,4]
[365812276,1749931840746,-424.87451413,0.00021917,4]
[365812277,1749931840755,-276.78067423,0.00021917,4]
[365812278,1749931840765,-460.0,0.00021917,4]
[365812279,1749931840775,-410.0,0.00021917,4]
[365812280,1749931840784,-636.03,0.00021917,4]
[365812281,1749931840794,-400.0,0.00021917,4]
[365812282,1749931840804,-460.0,0.00021917,4]
[365812283,1749931840814,-460.0,0.00021917,4]
[365812284,1749931840823,-460.0,0.00021917,4]
[365812285,1749931840832,-460.0,0.00021917,4]
[365812286,1749931840842,-1007.59,0.00021917,4]
[365812287,1749931840851,-460.0,0.00021917,4]
[365812288,1749931840860,-460.0,0.00021917,4]
[365812289,1749931840869,-460.0,0.00021917,4]
[365812290,1749931840879,-460.0,0.00021917,4]
[365812291,1749931840889,-460.0,0.00021917,4]
[365812292,1749931840898,-460.0,0.00021917,4]
[365812293,1749931840908,-460.0,0.00021917,4]
[365812294,1749931840917,-460.0,0.00021917,4]
[365812295,1749931840927,-2039.31,0.00021917,4]
[365812296,1749931840936,-440.0,0.00021917,4]
[365812297,1749931840946,-225.8679098,0.00021917,4]
[365812298,1749931840955,-430.0,0.00021917,4]
[365812299,1749931840965,-460.0,0.00021917,4]
[365812300,1749931840975,-460.0,0.00021917,4]
[365812301,1749931840984,-460.0,0.00021917,4]
[365812302,1749931840993,-460.0,0.00021917,4]
[365812303,1749931841002,-460.0,0.00021917,4]
[365812304,1749931841012,-460.0,0.00021917,4]
[365812305,1749931841022,-400.0,0.00021917,4]
[365812306,1749931841031,-440.0,0.00021917,4]
[365812307,1749931841040,-460.0,0.00021917,4]
[365812308,1749931841052,-460.0,0.00021917,4]
[365812309,1749931841061,-460.0,0.00021917,4]
[365812310,1749931841070,-2611.62,0.00021917,4]
[365812311,1749931841080,-440.0,0.00021917,4]
[365812312,1749931841089,-2471.67,0.00021917,4]
[365812313,1749931841098,-460.0,0.00021917,4]
[365812314,1749931841108,-330.784115,0.00021917,4]
[365812315,1749931841117,-430.0,0.00021917,4]
[365812316,1749931841127,-2560.95,0.00021917,4]
[365812317,1749931841136,-460.0,0.00021917,4]
[365812318,1749931841145,-460.0,0.00021917,4]
[365812319,1749931841155,-390.0,0.00021917,4]
[365812320,1749931841164,-572.2,0.00021917,4]
[365812321,1749931841174,-460.0,0.00021917,4]
[365812322,1749931841184,-440.0,0.00021917,4]
[365812323,1749931841193,-460.0,0.00021917,4]
[365812324,1749931841203,-460.0,0.00021917,4]
[365812325,1749931841213,-335.2116035,0.00021917,4]
[365812326,1749931841222,-460.0,0.00021917,4]
[365812327,1749931841231,-440.0,0.00021917,4]
[365812328,1749931841241,-460.0,0.00021917,4]
[365812329,1749931841250,-2784.54,0.00021917,4]
[365812330,1749931841259,-460.0,0.00021917,4]
[365812331,1749931841269,-430.0,0.00021917,4]
[365812332,1749931841278,-1341.71,0.00021917,4]
[365812333,1749931841287,-460.0,0.00021917,4]
[365812334,1749931841296,-514.26,0.00021917,2]
[365812335,1749931841307,-530.91,0.00021917,4]
[365812336,1749931841316,-460.0,0.00021917,4]
[365812337,1749931841326,-206.21705771,0.00021917,4]
[365812338,1749931841335,-430.0,0.00021917,4]
[365812339,1749931841344,-167.91792747,0.00021917,4]
[365812340,1749931841354,-693.19,0.00021917,4]
[365812341,1749931841369,-500.0,0.00021917,4]
[365812342,1749931841379,-460.0,0.00021917,4]
[365812343,1749931841388,-1062.41,0.00021917,4]
[365812344,1749931841398,-460.0,0.00021917,4]
[365812345,1749931841409,-460.0,0.00021917,4]
[365812346,1749931841419,-460.0,0.00021917,4]
[365812347,1749931841429,-440.0,0.00021917,4]
[365812348,1749931841439,-460.0,0.00021917,4]
[365812349,1749931841449,-460.0,0.00021917,4]
[365812350,1749931841458,-437.1124755,0.00021917,4]
[365812351,1749931841468,-460.0,0.00021917,4]
[365812352,1749931841477,-460.0,0.00021917,4]
[365812353,1749931841487,-1836.7,0.00021917,4]
[365812354,1749931841497,-400.0,0.00021917,4]
[365812355,1749931841638,-460.0,0.00021917,4]
[365812356,1749931841648,-1612.42,0.00021917,4]
[365812357,1749931841659,-512.2716264,0.00021917,4]
[365812358,1749931841669,-460.0,0.00021917,4]
[365812359,1749931841679,-506.15363087,0.00021917,4]
[365812360,1749931841688,-2322.51,0.00021917,4]
[365812361,1749931841698,-501.77666421,0.00021917,4]
[365812362,1749931841708,-460.0,0.00021917,4]
[365812363,1749931841717,-400.0,0.00021917,4]
[365812364,1749931841726,-290.0,0.00021917,4]
[365812365,1749931841736,-1486.95,0.00021917,4]
[365812366,1749931841745,-460.0,0.00021917,4]
[365812367,1749931841754,-460.0,0.00021917,4]
[365812368,1749931841764,-460.0,0.00021917,4]
[365812369,1749931841774,-484.89476985,0.00021917,4]
[365812370,1749931841784,-430.0,0.00021917,4]
[365812371,1749931841794,-430.0,0.00021917,4]
[365812372,1749931841806,-460.0,0.00021917,4]
[365812373,1749931841815,-460.0,0.00021917,4]
[365812374,1749931841824,-524.37848364,0.00021917,4]
[365812375,1749931841834,-648.81,0.00021917,4]
[365812376,1749931841844,-405.57375839,0.00021917,4]
[365812377,1749931841853,-432.1844074,0.00021917,4]
[365812378,1749931841863,-460.0,0.00021917,4]
[365812379,1749931841873,-420.0,0.00021917,4]
[365812380,1749931841882,-460.0,0.00021917,4]
[365812381,1749931841891,-514.39836032,0.00021917,4]
[365812382,1749931841900,-460.0,0.00021917,4]
[365812383,1749931841910,-460.0,0.00021917,4]
[365812384,1749931841919,-500.0,0.00021917,4]
[365812385,1749931841928,-298.85204523,0.00021917,4]
[365812386,1749931841938,-908.29,0.00021917,4]
[365812387,1749931841949,-590.68133678,0.00021917,4]
[365812388,1749931841959,-430.0,0.00021917,4]
[365812389,1749931841969,-460.0,0.00021917,4]
[365812390,1749931841979,-440.0,0.00021917,4]
[365812391,1749931841989,-482.35,0.00021917,4]
[365812392,1749931841999,-460.0,0.00021917,4]
[365812393,1749931842009,-460.0,0.00021917,4]
[365812394,1749931842019,-460.0,0.00021917,4]
[365812395,1749931842029,-460.0,0.00021917,4]
[365812396,1749931842039,-500.0,0.00021917,4]
[365812397,1749931842048,-500.0,0.00021973,2]
[365812398,1749931842060,-500.0,0.00021973,2]
[365812399,1749931842069,-500.0,0.00021973,2]
[365812400,1749931842079,-500.0,0.00021973,2]
[365812401,1749931842087,-500.0,0.00021973,2]
[365812402,1749931842097,-500.0,0.00021973,2]
[365812403,1749931842107,-171.0,0.00022,2]
[365812404,1749931842116,-170.0,0.00022,2]
[365812405,1749931842126,-1351.7590464,0.00022003,6]
[365812406,1749931842136,-300.0,0.00022037,2]
[365812407,1749931842146,-357.32371906,0.00022041,2]
[365812408,1749931842156,-1967.28,0.0002209,2]
[365812409,1749931842165,-11303.75564726,0.00022091,2]
[365812410,1749931842175,-1351.7590464,0.00022107,6]
[365812411,1749931842184,-1967.28,0.0002219,2]
[365812412,1749931842194,-1967.28,0.0002219,2]
[365812413,1749931842204,-1967.28,0.0002219,2]
[365812414,1749931842214,-1967.28,0.0002219,2]
[365812415,1749931842223,-1967.28,0.0002219,2]
[365812416,1749931842233,-1967.28,0.0002219,2]
[365812417,1749931842243,-460.0,0.00022191,4]
[365812418,1749931842254,-420.0,0.00022191,4]
[365812419,1749931842264,-460.0,0.00022191,4]
[365812420,1749931842274,-460.0,0.00022191,4]
[365812421,1749931842284,-460.0,0.00022191,4]
[365812422,1749931842294,-400.0,0.00022191,4]
[365812423,1749931842305,-460.0,0.00022191,4]
[365812424,1749931842315,-479.38,0.00022191,4]
[365812425,1749931842325,-460.0,0.00022191,4]
[365812426,1749931842335,-360.0,0.00022191,4]
[365812427,1749931842344,-460.0,0.00022191,4]
[365812428,1749931842354,-170.8691648,0.00022191,4]
[365812429,1749931842365,-460.0,0.00022191,4]
[365812430,1749931842376,-390.0,0.00022191,4]
[365812431,1749931842386,-460.0,0.00022191,4]
[365812432,1749931842396,-460.0,0.00022191,4]
[365812433,1749931842407,-460.0,0.00022191,4]
[365812434,1749931842416,-460.0,0.00022191,4]
[365812435,1749931842426,-460.0,0.00022191,4]
[365812436,1749931842436,-430.0,0.00022191,4]
[365812437,1749931842448,-448.33,0.00022191,4]
[365812438,1749931842458,-460.0,0.00022191,4]
[365812439,1749931842468,-603.59544499,0.00022191,4]
[365812440,1749931842478,-479.32423968,0.00022191,4]
[365812441,1749931842487,-447.51912785,0.00022191,4]
[365812442,1749931842496,-460.0,0.00022191,4]
[365812443,1749931842506,-1616.89,0.00022191,4]
[365812444,1749931842515,-440.0,0.00022191,4]
[365812445,1749931842525,-474.14646313,0.00022191,4]
[365812446,1749931842535,-460.0,0.00022191,4]
[365812447,1749931842545,-460.0,0.00022191,4]
[365812448,1749931842555,-420.0,0.00022191,4]
[365812449,1749931842567,-460.0,0.00022191,4]
[365812450,1749931842576,-385.15,0.00022191,4]
[365812451,1749931842586,-340.0,0.00022191,4]
[365812452,1749931842596,-390.0,0.00022191,4]
[365812453,1749931842605,-460.0,0.00022191,4]
[365812454,1749931842615,-260.0,0.00022191,4]
[365812455,1749931842625,-460.0,0.00022191,4]
[365812456,1749931842635,-460.0,0.00022191,4]
[365812457,1749931842645,-464.06,0.00022191,4]
[365812458,1749931842655,-430.0,0.00022191,4]
[365812459,1749931842665,-400.0,0.00022191,4]
[365812460,1749931842675,-460.0,0.00022191,4]
[365812461,1749931842684,-460.0,0.00022191,4]
[365812462,1749931842694,-460.0,0.00022191,4]
[365812463,1749931842703,-460.0,0.00022191,4]
[365812464,1749931842712,-400.0,0.00022191,4]
[365812465,1749931842722,-440.0,0.00022191,4]
[365812466,1749931842731,-460.0,0.00022191,4]
[365812467,1749931842741,-380.0,0.00022191,4]
[365812468,1749931842750,-1364.24,0.00022191,4]
[365812469,1749931842760,-460.0,0.00022191,4]
[365812470,1749931842769,-460.0,0.00022191,4]
[365812471,1749931842779,-390.0,0.00022191,4]
[365812472,1749931842788,-3070.43,0.00022191,4]
[365812473,1749931842799,-400.0,0.00022191,4]
[365812474,1749931842808,-282.32633216,0.00022191,4]
[365812475,1749931842818,-1179.01,0.00022191,4]
[365812476,1749931842828,-440.0,0.00022191,4]
[365812477,1749931842837,-460.0,0.00022191,4]
[365812478,1749931842847,-460.0,0.00022191,4]
[365812479,1749931842857,-360.0,0.00022191,4]
[365812480,1749931842868,-856.23,0.00022191,4]
[365812481,1749931842877,-460.0,0.00022191,4]
[365812482,1749931842887,-500.0,0.00022191,4]
[365812483,1749931842897,-460.0,0.00022191,4]
[365812484,1749931842906,-460.0,0.00022191,4]
[365812485,1749931842915,-460.0,0.00022191,4]
[365812486,1749931842925,-680.09,0.00022191,4]
[365812487,1749931842935,-460.0,0.00022191,4]
[365812488,1749931842944,-460.0,0.00022191,4]
[365812489,1749931842954,-2518.08,0.00022191,4]
[365812490,1749931842963,-988.3,0.00022191,4]
[365812491,1749931842972,-460.0,0.00022191,4]
[365812492,1749931842982,-460.0,0.00022191,4]
[365812493,1749931842991,-430.0,0.00022191,4]
[365812494,1749931843000,-460.0,0.00022191,4]
[365812495,1749931843010,-1010.36,0.00022191,4]
[365812496,1749931843019,-460.0,0.00022191,4]
[365812497,1749931843029,-460.0,0.00022191,4]
[365812498,1749931843039,-949.96,0.00022191,4]
[365812499,1749931843049,-460.0,0.00022191,4]
[365812500,1749931843059,-636.03,0.00022191,4]
[365812501,1749931843068,-460.0,0.00022191,4]
[365812502,1749931843078,-420.0,0.00022191,4]
[365812503,1749931843087,-460.0,0.00022191,4]
[365812504,1749931843097,-1007.59,0.00022191,4]
[365812505,1749931843107,-460.0,0.00022191,4]
[365812506,1749931843116,-420.0,0.00022191,4]
[365812507,1749931843125,-460.0,0.00022191,4]
[365812508,1749931843135,-2039.31,0.00022191,4]
[365812509,1749931843144,-460.0,0.00022191,4]
[365812510,1749931843153,-460.0,0.00022191,4]
[365812511,1749931843163,-289.33579986,0.00022191,4]
[365812512,1749931843173,-420.0,0.00022191,4]
[365812513,1749931843183,-420.0,0.00022191,4]
[365812514,1749931843192,-460.0,0.00022191,4]
[365812515,1749931843202,-2611.62,0.00022191,4]
[365812516,1749931843211,-2471.67,0.00022191,4]
[365812517,1749931843221,-2560.95,0.00022191,4]
[365812518,1749931843230,-460.0,0.00022191,4]
[365812519,1749931843239,-572.2,0.00022191,4]
[365812520,1749931843249,-460.0,0.00022191,4]
[365812521,1749931843259,-460.0,0.00022191,4]
[365812522,1749931843268,-460.0,0.00022191,4]
[365812523,1749931843278,-312.1468531,0.00022191,4]
[365812524,1749931843287,-2784.54,0.00022191,4]
[365812525,1749931843296,-460.0,0.00022191,4]
[365812526,1749931843307,-1341.71,0.00022191,4]
[365812527,1749931843317,-460.0,0.00022191,4]
[365812528,1749931843326,-514.26,0.00022191,2]
[365812529,1749931843335,-530.91,0.00022191,4]
[365812530,1749931843344,-693.19,0.00022191,4]
[365812531,1749931843354,-1062.41,0.00022191,4]
[365812532,1749931843366,-460.0,0.00022191,4]
[365812533,1749931843376,-494.46198256,0.00022191,4]
[365812534,1749931843386,-460.0,0.00022191,4]
[365812535,1749931843395,-460.0,0.00022191,4]
[365812536,1749931843405,-460.0,0.00022191,4]
[365812537,1749931843415,-311.11481644,0.00022191,4]
[365812538,1749931843424,-460.0,0.00022191,4]
[365812539,1749931843433,-1836.7,0.00022191,4]
[365812540,1749931843443,-1612.42,0.00022191,4]
[365812541,1749931843453,-2322.51,0.00022191,4]
[365812542,1749931843463,-1486.95,0.00022191,4]
[365812543,1749931843472,-460.0,0.00022191,4]
[365812544,1749931843482,-460.0,0.00022191,4]
[365812545,1749931843491,-648.81,0.00022191,4]
[365812547,1749931843500,-460.0,0.00022191,4]
[365812549,1749931843509,-460.0,0.00022191,4]
[365812550,1749931843518,-460.0,0.00022191,4]
[365812551,1749931843528,-908.29,0.00022191,4]
[365812552,1749931843538,-482.35,0.00022191,4]
[365812553,1749931843547,-460.0,0.00022191,4]
[365812554,1749931843559,-460.0,0.00022191,4]
[365812555,1749931843567,-460.0,0.00022191,4]
[365812556,1749931843577,-1351.7590464,0.0002221,6]
[365812557,1749931843586,-1967.28,0.00022264,2]
[365812558,1749931843595,-589.0,0.00022301,4]
[365812559,1749931843604,-216.58091068,0.00022301,4]
[365812560,1749931843613,-1351.7590464,0.00022314,7]
[365812561,1749931843623,-589.0,0.00022328,4]
[365812562,1749931843632,-485.10789202,0.00022333,2]
[365812563,1749931843641,-589.0,0.00022356,4]
[365812564,1749931843651,-168.0,0.00022358,2]
[365812565,1749931843660,-589.0,0.00022383,4]
[365812566,1749931843670,-229.82479369,0.0002241,2]
[365812567,1749931843680,-160.0,0.0002241,2]
[365812568,1749931843689,-424.40141186,0.0002241,2]
[365812569,1749931843699,-213.28201367,0.0002241,2]
[365812570,1749931843708,-160.0,0.0002241,2]
[365812571,1749931843718,-835.41710878,0.0002241,2]
[365812572,1749931843728,-589.0,0.00022411,4]
[365812573,1749931843738,-1351.7590464,0.00022417,7]
[365812574,1749931843747,-589.0,0.00022438,4]
[365812575,1749931843758,-153.0,0.00022438,2]
[365812576,1749931843768,-153.0,0.00022438,2]
[365812577,1749931843777,-1967.28,0.00022464,2]
[365812578,1749931843786,-1967.28,0.00022464,2]
[365812579,1749931843796,-1967.28,0.00022464,2]
[365812580,1749931843809,-1967.28,0.00022464,2]
[365812581,1749931843818,-1967.29,0.00022464,2]
[365812582,1749931843827,-305.10810695,0.00022465,4]
[365812583,1749931843836,-440.0,0.00022465,4]
[365812584,1749931843845,-460.0,0.00022465,4]
[365812585,1749931843854,-290.0,0.00022465,4]
[365812586,1749931843864,-479.38,0.00022465,4]
[365812587,1749931843873,-440.0,0.00022465,4]
[365812588,1749931843882,-460.0,0.00022465,4]
[365812589,1749931843891,-460.0,0.00022465,4]
[365812590,1749931843900,-460.0,0.00022465,4]
[365812591,1749931843911,-400.0,0.00022465,4]
[365812592,1749931843920,-460.0,0.00022465,4]
[365812593,1749931843929,-460.0,0.00022465,4]
[365812594,1749931843938,-460.0,0.00022465,4]
[365812595,1749931843946,-150.0,0.00022465,4]
[365812596,1749931843955,-1616.89,0.00022465,4]
[365812597,1749931843964,-460.0,0.00022465,4]
[365812598,1749931843973,-440.0,0.00022465,4]
[365812599,1749931843982,-460.0,0.00022465,4]
[365812600,1749931843991,-460.0,0.00022465,4]
[365812601,1749931844000,-460.0,0.00022465,4]
[365812602,1749931844009,-460.0,0.00022465,4]
[365812603,1749931844019,-460.0,0.00022465,4]
[365812604,1749931844029,-1364.24,0.00022465,4]
[365812605,1749931844039,-460.0,0.00022465,4]
[365812606,1749931844048,-476.41770466,0.00022465,4]
[365812607,1749931844061,-3070.43,0.00022465,4]
[365812608,1749931844070,-1179.01,0.00022465,4]
[365812609,1749931844080,-460.0,0.00022465,4]
[365812610,1749931844089,-856.23,0.00022465,4]
[365812612,1749931844099,-302.38280551,0.00022465,4]
[365812614,1749931844109,-460.0,0.00022465,4]
[365812616,1749931844118,-460.0,0.00022465,4]
[365812618,1749931844128,-460.0,0.00022465,4]
[365812620,1749931844137,-680.09,0.00022465,4]
[365812621,1749931844148,-460.0,0.00022465,4]
[365812623,1749931844158,-460.0,0.00022465,4]
[365812625,1749931844167,-2518.08,0.00022465,4]
[365812627,1749931844176,-988.3,0.00022465,4]
[365812629,1749931844185,-1010.36,0.00022465,4]
[365812630,1749931844194,-460.0,0.00022465,4]
[365812632,1749931844204,-949.96,0.00022465,4]
[365812633,1749931844212,-636.03,0.00022465,4]
[365812634,1749931844221,-460.0,0.00022465,4]
[365812635,1749931844230,-410.0,0.00022465,4]
[365812636,1749931844241,-1007.59,0.00022465,4]
[365812637,1749931844250,-460.0,0.00022465,4]
[365812638,1749931844259,-2039.31,0.00022465,4]
[365812639,1749931844268,-440.0,0.00022465,4]
[365812640,1749931844278,-460.0,0.00022465,4]
[365812641,1749931844287,-460.0,0.00022465,4]
[365812642,1749931844296,-2611.62,0.00022465,4]
[365812643,1749931844307,-2471.67,0.00022465,4]
[365812644,1749931844316,-2560.95,0.00022465,4]
[365812645,1749931844326,-460.0,0.00022465,4]
[365812646,1749931844335,-572.2,0.00022465,4]
[365812647,1749931844343,-460.0,0.00022465,4]
[365812648,1749931844353,-2784.54,0.00022465,4]
[365812649,1749931844362,-460.0,0.00022465,4]
[365812650,1749931844376,-1341.71,0.00022465,4]
[365812651,1749931844385,-460.0,0.00022465,4]
[365812652,1749931844394,-514.26,0.00022465,2]
[365812653,1749931844403,-530.91,0.00022465,4]
[365812654,1749931844413,-693.19,0.00022465,4]
[365812655,1749931844422,-1062.41,0.00022465,4]
[365812656,1749931844431,-460.0,0.00022465,4]
[365812657,1749931844440,-460.0,0.00022465,4]
[365812658,1749931844450,-460.0,0.00022465,4]
[365812659,1749931844460,-460.0,0.00022465,4]
[365812660,1749931844468,-1836.7,0.00022465,4]
[365812661,1749931844478,-1612.42,0.00022465,4]
[365812662,1749931844487,-2322.51,0.00022465,4]
[365812663,1749931844496,-1486.95,0.00022465,4]
[365812664,1749931844505,-460.0,0.00022465,4]
[365812665,1749931844514,-460.0,0.00022465,4]
[365812666,1749931844523,-648.81,0.00022465,4]
[365812667,1749931844532,-460.0,0.00022465,4]
[365812668,1749931844541,-460.0,0.00022465,4]
[365812669,1749931844550,-908.29,0.00022465,4]
[365812670,1749931844563,-482.35,0.00022465,4]
[365812671,1749931844571,-460.0,0.00022465,4]
[365812672,1749931844580,-460.0,0.00022465,4]
[365812673,1749931844589,-460.0,0.00022465,4]
[365812674,1749931844599,-589.0,0.00022465,4]
[365812675,1749931844608,-589.0,0.00022493,4]
[365812676,1749931844618,-522.97,0.000225,7]
[365812677,1749931844627,-10000.0,0.000225,4]
[365812678,1749931844637,-589.0,0.0002252,4]
[365812679,1749931844646,-1000.0,0.00022521,2]
[365812680,1749931844657,-1351.7590464,0.00022521,7]
[365812681,1749931844667,-5000.0,0.00022538,2]
[365812682,1749931844677,-500.0,0.00022538,2]
[365812683,1749931844686,-500.0,0.00022538,2]
[365812684,1749931844695,-500.0,0.00022538,2]
[365812685,1749931844706,-500.0,0.00022538,2]
[365812686,1749931844715,-500.0,0.00022538,2]
[365812687,1749931844725,-500.0,0.00022538,2]
[365812688,1749931844734,-500.0,0.00022538,2]
[365812689,1749931844743,-500.0,0.00022538,2]
[365812690,1749931844752,-500.0,0.00022538,2]
[365812691,1749931844761,-500.0,0.00022538,2]
[365812692,1749931844770,-500.0,0.00022538,2]
[365812693,1749931844779,-500.0,0.00022538,2]